[Event "Serbian-ch Semifinal 2024"]
[Site "Paracin"]
[Date "2024.02.10"]
[Round "8.6"]
[White "Stankovic, Boris"]
[Black "Injac, Teodora"]
[Result "1/2-1/2"]
[ECO "C47"]
[WhiteElo "2310"]
[BlackElo "2439"]
[Annotator "TA"]
[PlyCount "129"]
[EventDate "2024.02.04"]
[EventType "swiss"]
[EventCountry "SRB"]
[SourceTitle "playchess.com"]
[Source "ChessBase"]
[SourceQuality "1"]
[TimeControl "40/5400+30:1800+30"]

{[%evp 48,129,-18,-13,-14,-27,-6,-6,-10,-14,-18,-22,-20,-23,-6,-13,-5,-5,0,0,0,0,-3,-31,0,0,0,-67,-68,-64,0,-6,22,22,22,22,115,147,135,79,71,8,27,0,0,0,0,0,0,0,0,0,0,0,0,0,0,0,0,0,0,0,8,0,0,0,8,0,0,0,28,8,12,8,12,0,10,8,83,0,13,0,0,0]} 1. e4 {[%emt 0:10:43]} e5 {[%emt 0:00:19]} 2. Nf3 {[%emt 0:00:08]} Nc6 {[%emt 0:00:05]} 3. Nc3 {[%emt 0:00:41]} Nf6 {[%emt 0:00:15]} 4. g3 {[%emt 0:00:06]} d5 {[%emt 0:02:10]} 5. exd5 {[%emt 0:00:06]} Nxd5 {[%emt 0:00:05]} 6. Bg2 {[%emt 0:00:06]} Nxc3 {[%emt 0:00:48]} 7. bxc3 {[%emt 0:00:05]} Bc5 {[%emt 0:04:43]} 8. O-O {[%emt 0:00:07]} O-O {[%emt 0:00:06]} 9. Re1 {[%emt 0:01:16]} h6 {[%emt 0:02:47]} 10. d3 {[%emt 0:12:09]} Qf6 {[%emt 0:07:21]} 11. Be3 {[%emt 0:01:29] C47: Scotch Four Knights and Four Knights with 4 g3.} Bb6 {[%emt 0:05:47]} 12. Nd2 {[%emt 0:00:25]} Bd7 {[%emt 0:01:56]} 13. a4 $146 {[%emt 0:04:50]} ({Predecessor:} 13. Rb1 Rab8 14. Ne4 Qe7 15. Nd2 Qf6 16. Nc4 Bxe3 17. Rxe3 Rfe8 18. Qe2 b6 19. Re1 {½-½ Gabrielian,A (2464)-Horak,M (2328) Titled Tuesday intern op 09th Nov blitz 2021 (1)}) 13... Rfe8 {[%emt 0:02:06]} 14. Qh5 {[%emt 0:16:54]} Na5 {[%emt 0:19:49]} 15. Ne4 {[%emt 0:06:49]} Qf5 {[%emt 0:01:30]} 16. Qxf5 {[%emt 0:03:20]} Bxf5 {[%emt 0:00:05]} 17. c4 {[%emt 0:00:32]} Bxe3 {[%emt 0:04:15]} 18. Rxe3 {[%emt 0:03:40]} f6 {[%emt 0:08:45]} 19. Nc5 {[%emt 0:04:39]} Rab8 {[%emt 0:04:14]} 20. Rae1 {[%emt 0:09:29]} Kf8 {[%emt 0:06:34]} 21. Be4 {[%emt 0:00:27]} Bxe4 {[%emt 0:05:02]} 22. Rxe4 {[%emt 0:00:25]} Kf7 {[%emt 0:00:49]} 23. h4 {[%emt 0:03:57]} Rbc8 {[%emt 0:03:29]} 24. R4e3 {[%emt 0:04:21]} b6 {[%emt 0:00:15]} 25. Ne4 {[%emt 0:00:24]} Nc6 {[%emt 0:01:12]} 26. c3 {[%emt 0:00:19]} Red8 {[%emt 0:01:33]} 27. g4 {[%emt 0:01:13]} Rd7 {[%emt 0:00:41]} 28. Rf3 {[%emt 0:01:21]} Rcd8 {[%emt 0:01:04]} 29. Ree3 $1 {[%emt 0:00:24]} Ne7 {[%emt 0:02:27]} 30. h5 {[%emt 0:02:55]} Kg8 {[%emt 0:03:22]} 31. Kf1 {[%emt 0:01:24]} Nc6 {[%emt 0:01:25]} 32. Ke2 {[%emt 0:02:33]} Rf8 {[%emt 0:02:49]} 33. Kd2 {[%emt 0:00:47]} Nd8 {[%emt 0:00:35]} 34. Kc2 {[%emt 0:01:26]} Ne6 {[%emt 0:02:00]} 35. Ng3 {[%emt 0:02:29]} c5 {[%emt 0:02:04]} (35... Ng5 $5 36. Rf5 $8 c5 $11) 36. Nf5 {[%emt 0:01:11]} Rfd8 {[%emt 0:00:10]} 37. Nxh6+ {[%emt 0:02:56]} ({White should play} 37. Re1 $11) 37... gxh6 $15 {[%emt 0:00:27]} 38. Rxf6 {[%emt 0:00:04]} Ng5 {[%emt 0:05:12]} (38... Nf4 39. Rxe5 Rf8 (39... Nxd3 40. Re3 $11) 40. Rxh6 $11) (38... Rd6 $1 $15 39. Rg6+ Ng7 40. Rxd6 Rxd6) 39. Rxh6 $11 {[%emt 0:00:41]} Nf7 {[%emt 0:00:24]} 40. Re6 {[%emt 0:02:16]} Kh7 {[%emt 0:01:02]} 41. a5 {[%emt 0:05:25]} Rd6 {[%emt 0:16:42]} (41... bxa5 42. g5 Kg7 (42... Nxg5 43. R6xe5 Rf8 44. Rxg5 $11) 43. g6 $16) (41... Rg8 $11) 42. Re7 $16 {[%emt 0:00:44]} Rf6 {[%emt 0:03:24]} 43. f3 {[%emt 0:10:13]} (43. g5 $142 $1 {[%cal Rg5f6]} Rxf2+ 44. Kb3) 43... Kh6 $16 {[%emt 0:00:48] [#]} 44. Rxa7 {[%emt 0:00:40]} (44. a6 $1 $16) 44... bxa5 $11 {[%emt 0:00:21]} 45. Rxa5 {[%emt 0:00:30]} Rc8 {[%emt 0:00:37]} 46. Kd2 {[%emt 0:02:26]} Rb6 {[%emt 0:02:51]} 47. Re2 {[%emt 0:01:43]} Ng5 {[%emt 0:00:46]} 48. Ke3 {[%emt 0:00:23]} Rf8 {[%emt 0:02:07]} 49. Rf2 {[%emt 0:00:53]} Rc6 {[%emt 0:03:08]} 50. Rf1 {[%emt 0:02:18]} Rf7 {[%emt 0:00:58]} 51. Ke2 {[%emt 0:00:30]} Ne6 {[%emt 0:00:34]} 52. Rfa1 {[%emt 0:05:26]} Rf6 {[%emt 0:02:19]} 53. Ke3 {[%emt 0:01:17]} Ng5 {[%emt 0:00:08]} 54. Rf1 {[%emt 0:00:17]} Rc7 {[%emt 0:00:26]} 55. Rf2 {[%emt 0:01:49]} Rc8 {[%emt 0:00:15]} 56. Rf1 {[%emt 0:01:06]} Rc7 {[%emt 0:00:01]} 57. Rf2 {[%emt 0:00:05]} Rc8 {[%emt 0:00:41]} 58. Ra7 {[%emt 0:00:53]} Rcc6 {[%emt 0:00:18]} (58... Rcf8 $2 59. Re7 $17) 59. Re7 {[%emt 0:00:26]} Ne6 {[%emt 0:00:44]} 60. Ke4 {[%emt 0:01:08]} Ng5+ {[%emt 0:01:03]} 61. Ke3 {[%emt 0:00:01]} Ne6 {[%emt 0:00:20]} 62. Rb2 {[%emt 0:01:48]} (62. Ke4 Rb6 $14) 62... Ng5 {[%emt 0:00:15] [#]} (62... Ra6 $11 {remains equal.}) 63. Rf2 {[%emt 0:00:23]} ({Weaker is} 63. Rxe5 Rxf3+ 64. Kd2 Rg3 $15) (63. Rb8 $1 $16 {[%cal Rb8h8] Rh8+ is the strong threat.} Rxf3+ 64. Ke2) 63... Ne6 $11 {[%emt 0:00:01]} 64. Rf1 {[%emt 0:01:51]} ({Much less strong is} 64. Ke4 Rb6 $14) 64... Ra6 {[%emt 0:00:27]} 65. Rb1 {[%emt 0:00:48]} 1/2-1/2

[Event "Serbian-ch Semifinal 2024"]
[Site "Paracin"]
[Date "2024.02.10"]
[Round "8.7"]
[White "Ciric, Pavle"]
[Black "Tilicheev, Viacheslav"]
[Result "0-1"]
[ECO "A07"]
[WhiteElo "2159"]
[BlackElo "2487"]
[Annotator "TA"]
[PlyCount "110"]
[EventDate "2024.02.04"]
[EventType "swiss"]
[EventCountry "SRB"]
[SourceTitle "playchess.com"]
[Source "ChessBase"]
[SourceQuality "1"]
[TimeControl "40/5400+30:1800+30"]

{[%evp 9,110,20,26,20,17,16,17,9,25,17,25,16,11,12,20,13,16,0,-5,-6,0,-6,-11,-8,0,-4,0,-95,-76,-97,-6,0,0,-8,-17,0,0,0,0,0,0,0,0,0,0,0,0,0,0,-43,-29,-57,-58,-67,-63,-60,-50,-31,-22,-43,-29,-101,-95,-95,-96,-97,-93,-97,-84,-67,-85,-95,-91,-118,-133,-129,-139,-135,-134,-156,-163,-185,-219,-226,-216,-372,-433,-430,-442,-435,-417,-382,-380,-371,-381,-387,-382,-433,-353,-471,-462,-29970,-29967]} 1. Nf3 {[%emt 0:00:03]} d5 {[%emt 0:00:09]} 2. g3 {[%emt 0:00:06]} Nf6 {[%emt 0:00:05]} 3. Bg2 {[%emt 0:00:04]} c6 {[%emt 0:00:20]} 4. O-O {[%emt 0:00:08]} Bg4 {[%emt 0:00:06]} 5. h3 {[%emt 0:00:38]} Bh5 {[%emt 0:01:31]} 6. d4 {[%emt 0:00:13]} e6 {[%emt 0:00:14] [#]} 7. c4 $1 {[%emt 0:00:11]} Nbd7 {[%emt 0:00:05][%cal Bb8d7,Bd7f8,Bf8e6][%mdl 32]} (7... Be7 8. Qb3) 8. cxd5 {[%emt 0:00:04] The position is equal.} exd5 {[%emt 0:00:31]} 9. Qb3 {[%emt 0:00:11]} Qb6 {[%emt 0:00:07]} 10. Qe3+ {[%emt 0:00:07]} Be7 {[%emt 0:00:14]} 11. Nh4 {[%emt 0:00:07]} Bg6 {[%emt 0:00:18] Prevents Nf5.} 12. Nc3 {[%emt 0:00:35]} Nf8 {[%emt 0:12:41]} 13. f4 {[%emt 0:18:42]} Bc2 {[%emt 0:02:19]} 14. Qd2 {[%emt 0:15:13]} Be4 {[%emt 0:00:55]} 15. Bxe4 {[%emt 0:00:16]} Nxe4 {[%emt 0:05:41]} 16. Nxe4 {[%emt 0:00:11]} dxe4 {[%emt 0:00:05]} 17. Nf5 {[%emt 0:06:03]} Ne6 {[%emt 0:00:41]} 18. Qe3 {[%emt 0:08:14]} (18. Nxe7 $1 $11 Kxe7 19. e3) 18... Bf6 $1 $17 {[%emt 0:05:55]} 19. Qxe4 {[%emt 0:01:23]} g6 {[%emt 0:01:24]} (19... O-O-O $1 $17 {[%cal Re6d4]} 20. e3 h5) 20. Nd6+ $11 {[%emt 0:03:08]} Ke7 {[%emt 0:00:18]} 21. Nc4 $36 {[%emt 0:17:03][%mdl 2048] White has good play.} Qxd4+ {[%emt 0:04:27]} 22. Qxd4 {[%emt 0:00:03]} Bxd4+ {[%emt 0:00:09]} 23. e3 {[%emt 0:00:45]} Bc5 {[%emt 0:00:23]} 24. b4 {[%emt 0:01:19]} Bxb4 {[%emt 0:06:44]} 25. Rb1 {[%emt 0:00:03]} c5 {[%emt 0:00:32]} 26. Bb2 {[%emt 0:05:42]} Rhc8 {[%emt 0:00:30]} 27. f5 {[%emt 0:01:40]} b5 $1 {[%emt 0:05:06]} 28. Ne5 {[%emt 0:05:46]} Nd8 {[%emt 0:00:51]} 29. fxg6 {[%emt 0:05:04]} hxg6 {[%emt 0:00:22]} 30. Nd3 {[%emt 0:01:48]} Ke8 {[%emt 0:02:02]} 31. Bc1 {[%emt 0:04:06]} a5 {[%emt 0:06:07]} 32. a3 $1 {[%emt 0:00:05]} Bc3 {[%emt 0:00:15]} 33. Rxb5 {[%emt 0:00:04]} c4 {[%emt 0:00:03]} 34. Nc5 {[%emt 0:03:17] Black must now prevent Ne4.} Rab8 {[%emt 0:01:07]} 35. Ne4 {[%emt 0:00:14]} Rxb5 $17 {[%emt 0:00:48]} 36. Nd6+ {[%emt 0:00:01]} Ke7 {[%emt 0:00:53]} 37. Nxb5 {[%emt 0:00:02]} Be5 {[%emt 0:00:07]} 38. Bd2 {[%emt 0:03:31]} Rc5 {[%emt 0:04:27]} ({Of course not} 38... Bxg3 $6 39. Bxa5 Nc6 40. Bc3 $15) (38... c3 39. Bxc3 Rxc3 (39... Bxc3 40. Rc1 $11) 40. Nxc3 Bxc3 41. Rb1 $17) 39. Nc3 {[%emt 0:01:56]} Bxg3 {[%emt 0:03:43]} 40. Ne4 {[%emt 0:01:29][%csl LRc5,LRg3]} Rd5 {[%emt 0:00:06] Hoping for ...Be5.} 41. Bxa5 {[%emt 0:04:58]} Rxa5 {[%emt 0:02:07]} 42. Nxg3 {[%emt 0:01:44]} Rxa3 {[%emt 0:00:06][%mdl 4096] Endgame. KRN-KRN} 43. Rc1 {[%emt 0:00:13]} Ra4 $1 {[%emt 0:03:17]} 44. Ne4 {[%emt 0:01:58] [#]} Nc6 $1 {[%emt 0:02:22]} 45. Nc5 {[%emt 0:08:28]} Rb4 {[%emt 0:00:20]} 46. Na6 {[%emt 0:00:23] [#]} Rb6 {[%emt 0:00:20]} 47. Nc7 {[%emt 0:00:15]} (47. Nc5) 47... Kd6 $19 {[%emt 0:01:19]} 48. Ne8+ {[%emt 0:00:08]} Kc5 {[%emt 0:01:10]} 49. Nf6 {[%emt 0:00:05] Strongly threatening Nd7+.} Rb2 {[%emt 0:01:19]} 50. Nd7+ {[%emt 0:02:52]} Kb4 {[%emt 0:00:36] ...c3 is the strong threat.} 51. Nb6 {[%emt 0:00:04]} Ne5 {[%emt 0:00:10]} 52. Nd5+ {[%emt 0:00:12]} Ka3 {[%emt 0:03:41]} 53. e4 {[%emt 0:00:51]} Rd2 {[%emt 0:02:44] And now ...Kb2 would win.} 54. Ne3 {[%emt 0:01:11]} Kb3 {[%emt 0:00:25] aiming for ...c3.} 55. Nd5 {[%emt 0:00:21]} (55. Nxc4 $19 Nxc4 56. h4) 55... Kb2 {[%emt 0:00:47] Weighted Error Value: White=0.32/Black=0.06 (flawless) .  Mistake:       	White=4     	Black=1      Inaccurate:     	White=3     	---        OK:         	White=21    	Black=27     Best:        	White=4     	Black=5      Strong:       	White=1     	Black=2} 0-1

[Event "Serbian-ch Semifinal 2024"]
[Site "Paracin"]
[Date "2024.02.10"]
[Round "8.8"]
[White "Todorovic, Goran N"]
[Black "Djordjevic, Vuk"]
[Result "1/2-1/2"]
[ECO "E12"]
[WhiteElo "2263"]
[BlackElo "2367"]
[Annotator "TA"]
[PlyCount "101"]
[EventDate "2024.02.04"]
[EventType "swiss"]
[EventCountry "SRB"]
[SourceTitle "playchess.com"]
[Source "ChessBase"]
[SourceQuality "1"]
[TimeControl "40/5400+30:1800+30"]

{[%evp 9,101,-3,31,46,46,39,41,26,42,39,81,20,14,18,52,46,79,39,42,56,47,46,58,55,72,75,121,66,79,72,64,62,66,60,110,52,56,56,51,33,33,28,35,39,83,84,65,29,35,31,33,0,0,0,2,0,0,12,14,2,40,5,69,72,62,62,64,0,0,0,0,0,93,91,98,96,98,105,266,0,0,0,0,0,0,0,0,0,0,0,0,0,0,0]} 1. d4 {[%emt 0:00:30]} Nf6 {[%emt 0:02:34]} 2. c4 {[%emt 0:00:00]} e6 {[%emt 0:00:14]} 3. Nf3 {[%emt 0:00:00]} b6 {[%emt 0:00:17]} 4. Bf4 {[%emt 0:00:04]} Bb7 {[%emt 0:05:04]} 5. e3 {[%emt 0:01:03]} d6 {[%emt 0:01:48]} 6. Nc3 {[%emt 0:00:30]} h6 {[%emt 0:04:44]} 7. h3 {[%emt 0:00:47]} Nbd7 {[%emt 0:00:39]} 8. Be2 {[%emt 0:01:23] White is slightly better.} g5 {[%emt 0:00:32]} 9. Bh2 {[%emt 0:02:09]} Bg7 {[%emt 0:01:15]} 10. d5 {[%emt 0:02:55]} (10. Qc2 $16) 10... Nc5 $11 {[%emt 0:08:29]} 11. Nd4 {[%emt 0:03:24]} a5 {[%emt 0:06:22]} 12. Bf3 {[%emt 0:06:29]} Qc8 {[%emt 0:11:10]} 13. e4 {[%emt 0:02:31]} O-O {[%emt 0:06:30]} 14. O-O {[%emt 0:02:03]} Nfd7 {[%emt 0:11:50]} 15. Be2 {[%emt 0:08:26]} Re8 {[%emt 0:11:24]} 16. Ndb5 {[%emt 0:10:23]} Ba6 {[%emt 0:04:31]} 17. Qc2 {[%emt 0:03:07]} Nf8 {[%emt 0:12:55]} (17... Bxb5 $142 18. Nxb5 (18. cxb5 Bxc3 19. bxc3 exd5 $11) 18... exd5) 18. Rfe1 {[%emt 0:04:18]} ({White should try} 18. f4 $16) 18... Qd8 {[%emt 0:01:33]} 19. Rad1 {[%emt 0:01:38][%cal Oe4e5]} Ng6 {[%emt 0:01:19]} 20. dxe6 {[%emt 0:18:33]} Nxe6 {[%emt 0:01:08]} 21. Bg4 {[%emt 0:01:07][%cal Oe4e5] Strongly threatening e5!} Nc5 {[%emt 0:03:38]} (21... Nef4 $14) 22. b3 {[%emt 0:02:30]} (22. Nd5 $16 Bxb5 23. cxb5) 22... Bxb5 $14 {[%emt 0:02:17]} 23. Nxb5 {[%emt 0:00:42]} Qe7 {[%emt 0:00:31]} 24. Re3 {[%emt 0:05:39]} Rad8 {[%emt 0:00:41]} 25. a3 {[%emt 0:06:36]} Ne6 {[%emt 0:00:42]} 26. Bf5 {[%emt 0:02:46] Black is weak on the light squares} Nh4 {[%emt 0:00:40]} 27. Bxe6 {[%emt 0:03:53]} fxe6 {[%emt 0:00:07]} 28. e5 {[%emt 0:00:11] White is more active.} Nf5 {[%emt 0:00:49]} 29. Ree1 {[%emt 0:00:59]} dxe5 {[%emt 0:00:09]} 30. Rxd8 {[%emt 0:04:35]} Rxd8 {[%emt 0:00:14]} 31. Bxe5 {[%emt 0:00:09]} c6 {[%emt 0:01:11]} 32. Nc3 {[%emt 0:02:51]} Bxe5 {[%emt 0:00:41]} 33. Rxe5 {[%emt 0:00:09][%cal Oc2f5]} Nd4 {[%emt 0:00:21]} 34. Qe4 {[%emt 0:00:55]} c5 {[%emt 0:00:39][%cal Oe7f6]} 35. Nb5 {[%emt 0:00:58] Threatening Nxd4.} Qf7 {[%emt 0:00:23]} (35... Kf7 $1 $11) 36. Nxd4 {[%emt 0:01:18]} Rxd4 {[%emt 0:00:14][%mdl 4096] Endgame. KQR-KQR} 37. Qe2 $36 {[%emt 0:00:23][%mdl 2048] White has good play.} Rd6 {[%emt 0:00:35] [#]} 38. h4 {[%emt 0:00:38]} gxh4 $11 {[%emt 0:00:30]} 39. Re4 {[%emt 0:01:15] Black must now prevent Rg4+.} Qf6 {[%emt 0:01:20]} 40. Qh5 {[%emt 0:01:16]} Rd2 {[%emt 0:00:00]} (40... Kh7 $11) 41. Qg4+ $16 {[%emt 0:06:17]} Kh8 {[%emt 0:09:36] And now ...Qa1+ would win.} 42. Rxe6 {[%emt 0:01:11] Re8+ would kill now.} Qxf2+ {[%emt 0:00:25]} 43. Kh2 {[%emt 0:00:11] Chess con chili.} Qf8 {[%emt 0:09:19] [#]} (43... Qg3+ $16 44. Qxg3 hxg3+ 45. Kh3 (45. Kxg3 Rd3+ 46. Kg4 Rxb3 $11) 45... a4) 44. Rxb6 $2 {[%emt 0:19:03]} (44. Qg6 $1 $18 {[%cal Oe6e8] Re8! is the strong threat.} Qf4+ 45. Kh3 Qg3+ 46. Qxg3 hxg3 47. Rxh6+ (47. Rxb6 a4 $18) 47... Kg7 48. Rxb6) 44... Rd4 $11 {[%emt 0:06:38] The position is equal.} 45. Qf3 {[%emt 0:01:34]} Qxf3 {[%emt 0:00:31]} 46. gxf3 {[%emt 0:00:14][%cal Oa3a4] KR-KR} a4 {[%emt 0:00:14]} 47. bxa4 {[%emt 0:01:56]} Rxc4 {[%emt 0:00:34]} 48. Rxh6+ {[%emt 0:00:19]} Kg7 {[%emt 0:00:06]} 49. Rc6 {[%emt 0:00:08]} Rxa4 {[%emt 0:00:13]} 50. Rxc5 {[%emt 0:00:13]} Rxa3 {[%emt 0:00:05]} 51. Kh3 {[%emt 0:01:15] Weighted Error Value: White=0.17 (very precise) /Black=0.20 (precise) .  Loses game:     	---       	Black=1      Missed win:     	White=1     	---        Mistake:       	White=4     	Black=4      Inaccurate:     	White=4     	Black=5      OK:         	White=13    	Black=18     Best:        	White=4     	Black=3} 1/2-1/2

[Event "Serbian-ch Semifinal 2024"]
[Site "Paracin"]
[Date "2024.02.10"]
[Round "8.11"]
[White "Milosevic, Milos"]
[Black "Krstic, Andrija Marko"]
[Result "1/2-1/2"]
[ECO "B31"]
[WhiteElo "2388"]
[BlackElo "2113"]
[Annotator "RC"]
[PlyCount "51"]
[EventDate "2024.02.04"]
[EventType "swiss"]
[EventCountry "SRB"]
[SourceTitle "playchess.com"]
[Source "ChessBase"]
[SourceQuality "1"]
[TimeControl "40/5400+30:1800+30"]

1. e4 {[%emt 0:09:26]} c5 {[%emt 0:00:04]} 2. Nc3 {[%emt 0:00:03]} Nc6 {[%emt 0:00:05]} 3. Bb5 {[%emt 0:00:04]} Nd4 {[%emt 0:00:10]} 4. Nf3 {[%emt 0:00:08]} g6 {[%emt 0:00:07]} 5. Bc4 {[%emt 0:00:10]} Bg7 {[%emt 0:00:41]} 6. O-O {[%emt 0:00:16]} e6 {[%emt 0:01:16]} 7. Nxd4 {[%emt 0:00:06]} cxd4 {[%emt 0:00:49]} 8. Nb5 {[%emt 0:00:03]} a6 {[%emt 0:26:25]} 9. Nd6+ {[%emt 0:00:07]} Ke7 {[%emt 0:00:05]} 10. Nxc8+ {[%emt 1:25:07]} Rxc8 {[%emt 0:00:08]} 11. d3 {[%emt 0:00:00]} Kf8 {[%emt 0:02:26]} 12. f4 {[%emt 0:00:00]} Ne7 {[%emt 0:03:36]} 13. Qf3 {[%emt 0:00:00]} f5 {[%emt 0:17:55]} 14. exf5 {[%emt 0:00:00]} b5 {[%emt 0:00:12]} 15. Bb3 {[%emt 0:00:00]} gxf5 {[%emt 0:00:42]} 16. Bd2 {[%emt 0:00:00]} a5 {[%emt 0:00:49]} 17. a4 {[%emt 0:00:00]} b4 {[%emt 0:01:09]} 18. Rae1 {[%emt 0:00:00]} Rc6 {[%emt 0:01:16]} 19. Kh1 {[%emt 0:00:00]} h5 {[%emt 0:01:00]} 20. Re2 {[%emt 0:00:00]} h4 {[%emt 0:01:21]} 21. Rg1 {[%emt 0:00:00]} Qe8 {[%emt 0:02:53]} 22. g4 {[%emt 0:00:00]} hxg3 {[%emt 0:00:50]} 23. Rxg3 {[%emt 0:00:00]} Qh5 {[%emt 0:00:27]} 24. Qf1 {[%emt 0:00:00]} Bf6 {[%emt 0:01:44]} 25. Reg2 {[%emt 0:00:00]} Rc8 {[%emt 0:04:05]} 26. Qf3 {[%emt 0:00:00]} 1/2-1/2

[Event "Serbian-ch Semifinal 2024"]
[Site "Paracin"]
[Date "2024.02.11"]
[Round "9.2"]
[White "Kovacevic, Aleksandar"]
[Black "Radovanovic, Nikola"]
[Result "1/2-1/2"]
[ECO "C79"]
[WhiteElo "2453"]
[BlackElo "2446"]
[Annotator "RC"]
[PlyCount "25"]
[EventDate "2024.02.04"]
[EventType "swiss"]
[EventCountry "SRB"]
[SourceTitle "playchess.com"]
[Source "ChessBase"]
[SourceQuality "1"]
[TimeControl "40/5400+30:1800+30"]

1. e4 {[%emt 0:00:06]} e5 {[%emt 0:01:00]} 2. Nf3 {[%emt 0:00:19]} Nc6 {[%emt 0:00:06]} 3. Bb5 {[%emt 0:00:22]} a6 {[%emt 0:00:08]} 4. Ba4 {[%emt 0:00:25]} Nf6 {[%emt 0:00:08]} 5. O-O {[%emt 0:00:29]} d6 {[%emt 0:00:05]} 6. Bxc6+ {[%emt 0:05:26]} bxc6 {[%emt 0:00:10]} 7. d4 {[%emt 0:00:07]} exd4 {[%emt 0:00:08]} 8. Nxd4 {[%emt 0:01:38]} c5 {[%emt 0:00:30]} 9. Nc6 {[%emt 0:03:38]} Qd7 {[%emt 0:00:16]} 10. Na5 {[%emt 0:00:01]} Qa4 {[%emt 0:00:09]} 11. Nb3 {[%emt 0:00:49]} Nxe4 {[%emt 0:08:34]} 12. Re1 {[%emt 0:03:26]} Be6 {[%emt 0:01:47]} 13. Qf3 {[%emt 0:16:58]} 1/2-1/2